fUST/lending_fUST_20250425
["ID","MTS","AMOUNT","RATE_DAILY","PERIOD"]
[358941719,1745573439506,-150.062,0.00016718,2]
[358941720,1745573439516,-150.0,0.00016718,2]
[358941721,1745573439525,-150.0,0.00016719,2]
[358941722,1745573439535,-150.0,0.00016719,2]
[358941723,1745573439544,-152.96031878,0.000168,2]
[358941724,1745573439554,-500.000001,0.0001688,2]
[358941725,1745573439563,-271.4,0.000169,2]
[358941726,1745573439572,-746.578415,0.000169,2]
[358941727,1745573439582,-361.5028103,0.000169,2]
[358941728,1745573439591,-151.0,0.00016933,2]
[358941729,1745573439600,-151.0,0.00016933,2]
[358941730,1745573439609,-151.0,0.00016933,2]
[358941731,1745573439619,-1365.42,0.00016936,2]
[358941732,1745573439628,-1000.0,0.00016947,2]
[358941733,1745573439638,-166.608375,0.00016986,2]
[358941734,1745573439647,-166.608375,0.00016986,2]
[358941735,1745573439656,-500.0,0.00016986,2]
[358941736,1745573439665,-151.0,0.00016986,2]
[358941737,1745573439676,-151.0,0.00016986,2]
[358941738,1745573439685,-220.012914,0.00016986,2]
[358941739,1745573439695,-220.012914,0.00016986,2]
[358941740,1745573439705,-500.0,0.00016986,2]
[358941741,1745573439714,-196.95676631,0.00016986,2]
[358941742,1745573439723,-468.24,0.00016986,2]
[358941743,1745573439733,-543.95,0.00016986,2]
[358941744,1745573439742,-662.64,0.00016986,2]
[358941745,1745573439752,-690.67,0.00016986,2]
[358941746,1745573439761,-655.91,0.00016986,2]
[358941747,1745573439770,-768.33,0.00016986,2]
[358941748,1745573439779,-598.22,0.00016986,2]
[358941749,1745573439789,-659.99218467,0.00016986,2]
[358941750,1745573439802,-223.08781533,0.00016986,2]
[358941751,1745573439811,-628.54,0.00016986,2]
[358941752,1745573439820,-651.30956601,0.00016986,2]
[358941755,1745573439875,-7.88043399,0.00016986,2]
[358941756,1745573439884,-785.02,0.00016986,2]
[358941757,1745573439893,-580.74,0.00016986,2]
[358941758,1745573439903,-500.0,0.00016986,2]
[358941759,1745573439912,-500.0,0.00016986,2]
[358941760,1745573439920,-841.88,0.00016986,2]
[358941761,1745573439929,-500.0,0.00016986,2]
[358941762,1745573439938,-500.0,0.00016986,2]
[358941763,1745573439949,-500.0,0.00016986,2]
[358941764,1745573439958,-1364.41,0.00016986,2]
[358941765,1745573439967,-500.0,0.00016986,2]
[358941766,1745573439976,-735.35,0.00016986,2]
[358941767,1745573439985,-1036.89,0.00016986,2]
[358941768,1745573439994,-782.49,0.00016986,2]
[358941769,1745573440003,-500.0,0.00016986,2]
[358941770,1745573440012,-351.11479937,0.00016986,2]
[358941771,1745573440021,-2943.03,0.00016986,2]
[358941772,1745573440030,-672.65,0.00016986,2]
[358941773,1745573440039,-706.98,0.00016986,2]
[358941774,1745573440048,-1196.01,0.00016986,2]
[358941775,1745573440057,-3115.41,0.00016986,2]
[358941776,1745573440066,-500.0,0.00016986,2]
[358941777,1745573440076,-814.65,0.00016986,2]
[358941778,1745573440086,-500.0,0.00016986,2]
[358941779,1745573440095,-500.0,0.00016986,2]
[358941780,1745573440104,-825.53737564,0.00016986,2]
[358941781,1745573440117,-90.39262436,0.00016986,2]
[358941782,1745573440130,-535.57436341,0.00016986,2]
[358941784,1745573441232,-319.10563659,0.00016986,2]
[358941785,1745573441243,-398.51449456,0.00016986,2]
[358941786,1745573441252,-500.0,0.00016986,2]
[358941787,1745573441262,-1853.97,0.00016986,2]
[358941788,1745573441271,-410.76244767,0.00016986,2]
[358941789,1745573441280,-864.69,0.00016986,2]
[358941790,1745573441290,-501.24,0.00016986,2]
[358941791,1745573441299,-1818.17,0.00016986,2]
[358941792,1745573441308,-1197.44,0.00016986,2]
[358941793,1745573441318,-500.0,0.00016986,2]
[358941794,1745573441327,-500.0,0.00016986,2]
[358941795,1745573441337,-1004.74,0.00016986,2]
[358941796,1745573441346,-184.67692175,0.00016986,2]
[358941797,1745573441479,-2247.0,0.00016585,2]
[358941798,1745573441488,-315.32307825,0.00016986,2]
[358941799,1745573441497,-533.25937746,0.00016986,2]
[358941800,1745573441507,-845.46,0.00016986,2]
[358941801,1745573441518,-500.0,0.00016986,2]
[358941802,1745573441528,-818.68,0.00016986,2]
[358941803,1745573441537,-672.31,0.00016986,2]
[358941804,1745573441547,-500.0,0.00016986,2]
[358941805,1745573441559,-859.07,0.00016986,2]
[358941806,1745573441568,-704.8,0.00016986,2]
[358941807,1745573441578,-569.21,0.00016986,2]
[358941808,1745573441587,-3253.61,0.00016986,2]
[358941809,1745573441598,-500.0,0.00016986,2]
[358941810,1745573441607,-500.0,0.00016986,2]
[358941811,1745573441617,-735.91,0.00016986,2]
[358941812,1745573441626,-259.42471429,0.00016986,2]
[358941869,1745573444935,-672.29,0.00016438,2]
[358941870,1745573444944,-672.29,0.00016712,2]
[358941871,1745573444954,-240.57528571,0.00016986,2]
[358941872,1745573444963,-696.2,0.00016986,2]
[358941873,1745573444972,-500.0,0.00016986,2]
[358941874,1745573444982,-544.6704942,0.00016986,2]
[358941875,1745573444991,-500.0,0.00016986,2]
[358941876,1745573445001,-500.0,0.00016986,2]
[358941877,1745573445010,-500.0,0.00016986,2]
[358941878,1745573445019,-565.84,0.00016986,2]
[358941879,1745573445030,-500.0,0.00016986,2]
[358941880,1745573445039,-645.4,0.00016986,2]
[358941881,1745573445048,-500.0,0.00016986,2]
[358941882,1745573445058,-1055.08,0.00016986,2]
[358941883,1745573445067,-500.0,0.00016986,2]
[358941884,1745573445076,-500.0,0.00016986,2]
[358941885,1745573445086,-2168.01,0.00016986,2]
[358941886,1745573445095,-540.9,0.00016986,2]
[358941887,1745573445105,-652.10976028,0.00017,2]
[358941888,1745573445114,-191.0,0.000172,2]
[358941889,1745573445125,-151.0,0.00017207,2]
[358941890,1745573445134,-1365.42,0.0001721,2]
[358941891,1745573445144,-1500.0,0.00017221,2]
[358941892,1745573445153,-151.0,0.0001726,2]
[358941893,1745573445162,-151.0,0.0001726,2]
[358941894,1745573445173,-151.0,0.0001726,2]
[358941895,1745573445183,-151.0,0.0001726,2]
[358941896,1745573445191,-166.608375,0.0001726,2]
[358941897,1745573445203,-166.608375,0.0001726,2]
[358941898,1745573445213,-498.06273281,0.0001726,2]
[358941899,1745573445233,-312.47903338,0.00016886,2]
[358941900,1745573445242,-1.93726719,0.0001726,2]
[358941901,1745573445252,-157.038152,0.0001726,2]
[358941902,1745573445261,-151.0,0.0001726,2]
[358941903,1745573445271,-151.0,0.0001726,2]
[358941904,1745573445280,-151.0,0.0001726,2]
[358941905,1745573445290,-220.012914,0.0001726,2]
[358941906,1745573445299,-151.0,0.0001726,2]
[358941907,1745573445308,-220.012914,0.0001726,2]
[358941908,1745573445319,-500.0,0.0001726,2]
[358941909,1745573445328,-151.0,0.0001726,2]
[358941910,1745573445337,-151.0,0.0001726,2]
[358941911,1745573445347,-151.0,0.0001726,2]
[358941912,1745573445355,-186.245263,0.0001726,2]
[358941913,1745573445365,-662.64,0.0001726,2]
[358941914,1745573445374,-151.0,0.0001726,2]
[358941915,1745573445383,-215.575127,0.0001726,2]
[358941916,1745573445392,-215.575127,0.0001726,2]
[358941917,1745573445401,-125.81857364,0.0001726,2]
[358941920,1745573446335,-706.0,0.00016585,2]
[358941921,1745573446345,-672.29,0.00016986,2]
[358941922,1745573446355,-25.18142636,0.0001726,2]
[358941923,1745573446364,-690.67,0.0001726,2]
[358941924,1745573446373,-655.91,0.0001726,2]
[358941925,1745573446382,-170.430527,0.0001726,2]
[358941926,1745573446392,-151.0,0.0001726,2]
[358941927,1745573446400,-598.22,0.0001726,2]
[358941928,1745573446410,-151.0,0.0001726,2]
[358941929,1745573446420,-883.08,0.0001726,2]
[358941930,1745573446429,-151.0,0.0001726,2]
[358941931,1745573446438,-628.54,0.0001726,2]
[358941932,1745573446448,-169.110681,0.0001726,2]
[358941934,1745573446457,-1006.147537,0.0001726,2]
[358941936,1745573446466,-1006.147537,0.0001726,2]
[358941937,1745573446475,-659.19,0.0001726,2]
[358941938,1745573446485,-208.877635,0.0001726,2]
[358941939,1745573446494,-208.877635,0.0001726,2]
[358941940,1745573446503,-2348.233612,0.0001726,2]
[358941941,1745573446513,-785.02,0.0001726,2]
[358941942,1745573446522,-2348.233612,0.0001726,2]
[358941943,1745573446531,-580.74,0.0001726,2]
[358941944,1745573446541,-500.0,0.0001726,2]
[358941945,1745573446550,-500.0,0.0001726,2]
[358941946,1745573446559,-841.88,0.0001726,2]
[358941947,1745573446568,-500.0,0.0001726,2]
[358941948,1745573446578,-500.0,0.0001726,2]
[358941949,1745573446587,-170.39252213,0.0001726,2]
[358941950,1745573446597,-1364.41,0.0001726,2]
[358941951,1745573446606,-735.35,0.0001726,2]
[358941952,1745573446615,-151.0,0.0001726,2]
[358941953,1745573446624,-273.563956,0.0001726,2]
[358941954,1745573446633,-151.0,0.0001726,2]
[358941955,1745573446642,-1036.89,0.0001726,2]
[358941956,1745573446651,-782.49,0.0001726,2]
[358941957,1745573446659,-500.0,0.0001726,2]
[358941958,1745573446668,-443.350317,0.0001726,2]
[358941959,1745573446677,-443.350317,0.0001726,2]
[358941960,1745573446686,-2943.03,0.0001726,2]
[358941961,1745573446696,-672.65,0.0001726,2]
[358941962,1745573446705,-151.0,0.0001726,2]
[358941963,1745573446714,-706.98,0.0001726,2]
[358941964,1745573446723,-188.803366,0.0001726,2]
[358941965,1745573446735,-151.0,0.0001726,2]
[358941966,1745573446745,-1196.01,0.0001726,2]
[358941967,1745573446754,-188.803366,0.0001726,2]
[358941968,1745573446763,-3115.41,0.0001726,2]
[358941969,1745573446772,-292.65428351,0.0001726,2]
[358941970,1745573447030,-207.34571649,0.0001726,2]
[358941971,1745573447039,-151.0,0.0001726,2]
[358941972,1745573447049,-814.65,0.0001726,2]
[358941973,1745573447058,-500.0,0.0001726,2]
[358941974,1745573447067,-500.0,0.0001726,2]
[358941975,1745573447076,-179.83717051,0.0001726,2]
[358941976,1745573551967,197.65,0.00025,30]
[358941977,1745573555023,197.65,0.00025,31]
[358941978,1745573594240,187.0,0.00025,31]
[358941981,1745573938129,2180.0,0.00025,30]
[358941984,1745574564160,-973.84903588,0.0001506,2]
[358941992,1745574632316,-26.15096412,0.0001506,2]
[358941993,1745574632326,-500.0,0.00015886,2]
[358941994,1745574632336,-600.23774536,0.00015886,2]
[358941995,1745574632345,-500.0,0.00015886,2]
[358941996,1745574632355,-300.0,0.00015886,2]
[358941997,1745574632364,-300.0,0.00015886,2]
[358941998,1745574632373,-7785.73678251,0.00015888,2]
[358941999,1745574632382,-529.28702751,0.00015888,2]
[358942000,1745574632391,-11728.66845904,0.00015889,3]
[358942001,1745574632403,-24164.85106096,0.00015889,3]
[358942002,1745574632412,-840.21051354,0.00016,3]
[358942003,1745574632421,-2960.92797107,0.00016,2]
[358942004,1745574632431,-500.0,0.00016164,2]
[358942005,1745574632440,-433.33661144,0.00016164,2]
[358942006,1745574632450,-420.98395174,0.00016418,2]
[358942007,1745574632459,-160.0,0.00016418,2]
[358942008,1745574632468,-160.0,0.00016432,2]
[358942009,1745574632477,-840.21051354,0.00016432,2]
[358942010,1745574632486,-735.9,0.00016438,2]
[358942011,1745574632496,-501.39900212,0.00016438,2]
[358942012,1745574632506,-564.72,0.00016438,2]
[358942013,1745574632515,-612.79,0.00016438,2]
[358942014,1745574632524,-560.24,0.00016438,2]
[358942015,1745574632533,-500.74155648,0.00016438,2]
[358942016,1745574632544,-300.00792804,0.00016438,2]
[358942017,1745574632554,-500.0,0.00016438,2]
[358942018,1745574632565,-560.54,0.00016438,2]
[358942019,1745574632575,-500.0,0.00016438,2]
[358942020,1745574632584,-500.0,0.00016438,2]
[358942021,1745574632594,-390.65966051,0.00016438,2]
[358942022,1745574632604,-567.43,0.00016438,2]
[358942023,1745574632613,-500.0,0.00016438,2]
[358942024,1745574632622,-500.0,0.00016438,2]
[358942025,1745574632632,-500.0,0.00016438,2]
[358942026,1745574632641,-500.0,0.00016438,2]
[358942027,1745574632650,-501.87107407,0.00016438,2]
[358942028,1745574632659,-500.0,0.00016438,2]
[358942029,1745574632668,-500.94117506,0.00016438,2]
[358942030,1745574632678,-519.35,0.00016438,2]
[358942031,1745574632687,-503.95944969,0.00016438,2]
[358942032,1745574632696,-500.0,0.00016438,2]
[358942033,1745574632705,-500.0,0.00016438,2]
[358942034,1745574632715,-580.93,0.00016438,2]
[358942035,1745574632724,-500.0,0.00016438,2]
[358942036,1745574632733,-500.0,0.00016438,2]
[358942037,1745574632743,-1137.01,0.00016438,2]
[358942038,1745574632752,-701.57,0.00016438,2]
[358942039,1745574632761,-675.02,0.00016438,2]
[358942040,1745574632770,-500.0,0.00016438,2]
[358942041,1745574632779,-500.0,0.00016438,2]
[358942042,1745574632788,-501.11671259,0.00016438,2]
[358942043,1745574632798,-500.0,0.00016438,2]
[358942044,1745574632807,-328.42008639,0.00016438,2]
[358942045,1745574632817,-500.0,0.00016438,2]
[358942046,1745574632826,-500.0,0.00016438,2]
[358942047,1745574632835,-405.72324797,0.00016438,2]
[358942048,1745574632844,-500.0,0.00016438,2]
[358942049,1745574632853,-500.0,0.00016438,2]
[358942050,1745574632862,-729.8,0.00016438,2]
[358942051,1745574632871,-500.0,0.00016438,2]
[358942052,1745574632880,-500.0,0.00016438,2]
[358942053,1745574632889,-536.72,0.00016438,2]
[358942054,1745574632898,-500.0,0.00016438,2]
[358942055,1745574632907,-500.0,0.00016438,2]
[358942056,1745574632916,-500.0,0.00016438,2]
[358942057,1745574632925,-500.0,0.00016438,2]
[358942058,1745574632934,-500.0,0.00016438,2]
[358942059,1745574632943,-500.0,0.00016438,2]
[358942060,1745574633141,-500.0,0.00016438,2]
[358942061,1745574633157,-502.7289389,0.00016438,2]
[358942062,1745574633166,-500.0,0.00016438,2]
[358942063,1745574633175,-500.0,0.00016438,2]
[358942064,1745574633185,-500.0,0.00016438,2]
[358942065,1745574633194,-500.0,0.00016438,2]
[358942066,1745574633203,-502.02272379,0.00016438,2]
[358942067,1745574633212,-500.0,0.00016438,2]
[358942068,1745574633222,-500.0,0.00016438,2]
[358942069,1745574633231,-501.66015232,0.00016438,2]
[358942070,1745574633240,-500.0,0.00016438,2]
[358942071,1745574633249,-500.0,0.00016438,2]
[358942072,1745574633259,-589.15,0.00016438,2]
[358942073,1745574633269,-500.0,0.00016438,2]
[358942074,1745574633278,-500.0,0.00016438,2]
[358942075,1745574633287,-503.12833937,0.00016438,2]
[358942076,1745574633297,-1194.74,0.00016438,2]
[358942077,1745574633306,-500.0,0.00016438,2]
[358942078,1745574633318,-500.0,0.00016438,2]
[358942079,1745574633327,-500.0,0.00016438,2]
[358942080,1745574633336,-500.0,0.00016438,2]
[358942081,1745574633346,-500.0,0.00016438,2]
[358942082,1745574633355,-502.94011578,0.00016438,2]
[358942083,1745574633364,-500.0,0.00016438,2]
[358942084,1745574633373,-890.98,0.00016438,2]
[358942085,1745574633383,-500.0,0.00016438,2]
[358942086,1745574633402,-500.0,0.00016438,2]
[358942087,1745574633413,-500.0,0.00016438,2]
[358942088,1745574633423,-747.85,0.00016438,2]
[358942089,1745574633432,-501.1608781,0.00016438,2]
[358942090,1745574633443,-500.0,0.00016438,2]
[358942091,1745574633453,-500.0,0.00016438,2]
[358942092,1745574633463,-500.0,0.00016438,2]
[358942093,1745574633472,-500.0,0.00016438,2]
[358942094,1745574633482,-500.0,0.00016438,2]
[358942095,1745574633492,-1047.76,0.00016438,2]
[358942096,1745574633501,-500.0,0.00016438,2]
[358942097,1745574633511,-500.0,0.00016438,2]
[358942098,1745574633521,-501.10915126,0.00016438,2]
[358942099,1745574633531,-500.0,0.00016438,2]
[358942100,1745574633542,-2609.82,0.00016438,2]
[358942101,1745574633554,-2055.3,0.00016438,2]
[358942102,1745574633563,-500.0,0.00016438,2]
[358942103,1745574633573,-500.0,0.00016438,2]
[358942104,1745574633583,-571.05,0.00016438,2]
[358942105,1745574633593,-500.0,0.00016438,2]
[358942106,1745574633602,-500.33832287,0.00016438,2]
[358942107,1745574633612,-500.0,0.00016438,2]
[358942108,1745574633622,-505.35726948,0.00016438,2]
[358942109,1745574633632,-500.0,0.00016438,2]
[358942110,1745574633642,-438.27308523,0.00016438,2]
[358942111,1745574633652,-500.0,0.00016438,2]
[358942112,1745574633662,-500.0,0.00016438,2]
[358942113,1745574633672,-505.19067153,0.00016438,2]
[358942114,1745574633682,-500.0,0.00016438,2]
[358942115,1745574633692,-500.0,0.00016438,2]
[358942116,1745574633702,-500.0,0.00016438,2]
[358942117,1745574633712,-500.0,0.00016438,2]
[358942118,1745574633722,-500.0,0.00016438,2]
[358942119,1745574633732,-504.33056549,0.00016438,2]
[358942120,1745574633742,-500.0,0.00016438,2]
[358942121,1745574633752,-500.0,0.00016438,2]
[358942122,1745574633762,-500.0,0.00016438,2]
[358942123,1745574633771,-514.54938576,0.00016438,2]
[358942124,1745574633782,-500.0,0.00016438,2]
[358942125,1745574633792,-500.0,0.00016438,2]
[358942126,1745574633803,-509.52730735,0.00016438,2]
[358942127,1745574633812,-500.0,0.00016438,2]
[358942128,1745574633822,-500.0,0.00016438,2]
[358942129,1745574633832,-512.82066592,0.00016438,2]
[358942130,1745574633841,-777.44,0.00016438,2]
[358942131,1745574633851,-500.0,0.00016438,2]
[358942132,1745574633861,-716.34,0.00016438,2]
[358942133,1745574633872,-678.88,0.00016438,2]
[358942134,1745574633882,-500.0,0.00016438,2]
[358942135,1745574633891,-500.0,0.00016438,2]
[358942136,1745574633901,-500.0,0.00016438,2]
[358942137,1745574633911,-500.0,0.00016438,2]
[358942138,1745574633921,-500.11,0.00016438,2]
[358942139,1745574633932,-503.18471483,0.00016438,2]
[358942140,1745574633941,-772.51,0.00016438,2]
[358942141,1745574633951,-500.0,0.00016438,2]
[358942142,1745574633960,-982.72,0.00016438,2]
[358942143,1745574633971,-500.0,0.00016438,2]
[358942144,1745574633980,-210.56063152,0.00016438,2]
[358942145,1745574633990,-500.0,0.00016438,2]
[358942146,1745574633999,-500.0,0.00016438,2]
[358942147,1745574634008,-508.00327083,0.00016438,2]
[358942148,1745574634018,-500.0,0.00016438,2]
[358942149,1745574634027,-503.48778369,0.00016438,2]
[358942150,1745574634037,-500.0,0.00016438,2]
[358942151,1745574634047,-517.07717667,0.00016438,2]
[358942152,1745574634056,-500.0,0.00016438,2]
[358942153,1745574634067,-1655.37,0.00016438,2]
[358942154,1745574634076,-500.0,0.00016438,2]
[358942155,1745574634086,-500.0,0.00016438,2]
[358942156,1745574634095,-500.0,0.00016438,2]
[358942157,1745574634104,-500.0,0.00016438,2]
[358942158,1745574634113,-899.98,0.00016438,2]
[358942159,1745574634123,-500.0,0.00016438,2]
[358942160,1745574634132,-535.65655294,0.00016438,2]
[358942161,1745574634142,-1611.73,0.00016438,2]
[358942162,1745574634151,-513.0595933,0.00016438,2]
[358942163,1745574634161,-505.39447444,0.00016438,2]
[358942164,1745574634171,-500.0,0.00016438,2]
[358942165,1745574634180,-500.0,0.00016438,2]
[358942166,1745574634189,-500.0,0.00016438,2]
[358942167,1745574634199,-500.0,0.00016438,2]
[358942168,1745574634209,-511.1176315,0.00016438,2]
[358942169,1745574634218,-552.2,0.00016438,2]
[358942170,1745574634228,-500.0,0.00016438,2]
[358942171,1745574634237,-500.0,0.00016438,2]
[358942172,1745574634247,-503.69694472,0.00016438,2]
[358942173,1745574634256,-500.0,0.00016438,2]
[358942174,1745574634265,-228.78044375,0.00016438,2]
[358942175,1745574634274,-500.0,0.00016438,2]
[358942176,1745574634284,-500.0,0.00016438,2]
[358942177,1745574634293,-500.0,0.00016438,2]
[358942178,1745574634304,-500.0,0.00016438,2]
[358942179,1745574634314,-500.0,0.00016438,2]
[358942180,1745574634323,-500.0,0.00016438,2]
[358942181,1745574634332,-500.0,0.00016438,2]
[358942182,1745574634341,-500.0,0.00016438,2]
[358942183,1745574634351,-500.0,0.00016438,2]
[358942184,1745574634360,-500.0,0.00016438,2]
[358942185,1745574634369,-500.0,0.00016438,2]
[358942186,1745574634378,-500.0,0.00016438,2]
[358942187,1745574634387,-500.0,0.00016438,2]
[358942188,1745574634399,-500.0,0.00016438,2]
[358942189,1745574634408,-500.0,0.00016438,2]
[358942190,1745574634417,-500.0,0.00016438,2]
[358942191,1745574634427,-502.19330534,0.00016438,2]
[358942192,1745574634436,-500.0,0.00016438,2]
[358942193,1745574634446,-500.0,0.00016438,2]
[358942194,1745574634459,-501.55213335,0.00016438,2]
[358942195,1745574634469,-500.0,0.00016438,2]
[358942196,1745574634479,-502.13210205,0.00016438,2]
[358942197,1745574634489,-588.27,0.00016438,2]
[358942198,1745574634499,-504.36928118,0.00016438,2]
[358942199,1745574634508,-500.0,0.00016438,2]
[358942200,1745574634518,-500.0,0.00016438,2]
[358942201,1745574634528,-501.89193032,0.00016438,2]
[358942202,1745574634538,-500.0,0.00016438,2]
[358942203,1745574634553,-500.0,0.00016438,2]
[358942204,1745574634563,-500.0,0.00016438,2]
[358942205,1745574634572,-500.0,0.00016438,2]
[358942206,1745574634583,-500.0,0.00016438,2]
[358942207,1745574634592,-500.0,0.00016438,2]
[358942208,1745574634602,-500.0,0.00016438,2]
[358942209,1745574634611,-500.0,0.00016438,2]
[358942210,1745574634621,-501.52991366,0.00016438,2]
[358942211,1745574634631,-516.63,0.00016438,2]
[358942212,1745574634640,-500.0,0.00016438,2]
[358942213,1745574634650,-799.05,0.00016438,2]
[358942214,1745574634660,-500.0,0.00016438,2]
[358942215,1745574634669,-494.28396453,0.00016438,2]
[358942216,1745574634679,-500.0,0.00016438,2]
[358942217,1745574634688,-500.0,0.00016438,2]
[358942218,1745574634697,-500.0,0.00016438,2]
[358942219,1745574634707,-500.0,0.00016438,2]
[358942220,1745574634716,-500.0,0.00016438,2]
[358942221,1745574634726,-500.0,0.00016438,2]
[358942222,1745574634736,-500.0,0.00016438,2]
[358942223,1745574634745,-500.0,0.00016438,2]
[358942224,1745574634755,-500.0,0.00016438,2]
[358942225,1745574634764,-500.0,0.00016438,2]
[358942226,1745574634773,-500.0,0.00016438,2]
[358942227,1745574634783,-500.0,0.00016438,2]
[358942228,1745574634793,-501.02042542,0.00016438,2]
[358942229,1745574634803,-279.8283509,0.00016438,2]
[358942230,1745574634813,-500.0,0.00016438,2]
[358942231,1745574634822,-500.0,0.00016438,2]
[358942232,1745574634832,-500.0,0.00016438,2]
[358942233,1745574634842,-601.32,0.00016438,2]
[358942234,1745574634851,-1925.42,0.00016438,2]
[358942235,1745574634861,-500.0,0.00016438,2]
[358942236,1745574634870,-500.0,0.00016438,2]
[358942237,1745574634880,-637.54,0.00016438,2]
[358942238,1745574634889,-500.0,0.00016438,2]
[358942239,1745574634899,-500.0,0.00016438,2]
[358942240,1745574634908,-986.98,0.00016438,2]
[358942241,1745574634917,-500.0,0.00016438,2]
[358942242,1745574634927,-500.36272776,0.00016438,2]
[358942243,1745574634936,-500.0,0.00016438,2]
[358942244,1745574634946,-500.0,0.00016438,2]
[358942245,1745574634955,-2509.5,0.00016438,2]
[358942246,1745574634964,-500.0,0.00016438,2]
[358942247,1745574634973,-504.48380455,0.00016438,2]
[358942248,1745574634982,-502.49030713,0.00016438,2]
[358942249,1745574634991,-500.0,0.00016438,2]
[358942250,1745574635001,-500.0,0.00016438,2]
[358942251,1745574635010,-500.0,0.00016438,2]
[358942252,1745574635019,-696.61,0.00016438,2]
[358942253,1745574635028,-500.0,0.00016438,2]
[358942254,1745574635037,-500.0,0.00016438,2]
[358942255,1745574635046,-500.0,0.00016438,2]
[358942256,1745574635056,-500.0,0.00016438,2]
[358942257,1745574635065,-500.0,0.00016438,2]
[358942258,1745574635074,-500.0,0.00016438,2]
[358942259,1745574635084,-500.0,0.00016438,2]
[358942260,1745574635093,-500.0,0.00016438,2]
[358942261,1745574635102,-500.0,0.00016438,2]
[358942262,1745574635111,-1017.51,0.00016438,2]
[358942263,1745574635123,-500.0,0.00016438,2]
[358942264,1745574635132,-500.0,0.00016438,2]
[358942265,1745574635141,-500.0,0.00016438,2]
[358942266,1745574635151,-509.96645811,0.00016438,2]
[358942267,1745574635160,-500.0,0.00016438,2]
[358942268,1745574635169,-500.0,0.00016438,2]
[358942269,1745574635178,-500.0,0.00016438,2]
[358942270,1745574635187,-630.01,0.00016438,2]
[358942271,1745574635196,-500.0,0.00016438,2]
[358942272,1745574635205,-500.0,0.00016438,2]
[358942273,1745574635215,-500.0,0.00016438,2]
[358942274,1745574635224,-500.0,0.00016438,2]
[358942275,1745574635233,-500.0,0.00016438,2]
[358942276,1745574635242,-500.0,0.00016438,2]
[358942277,1745574635251,-500.0,0.00016438,2]
[358942278,1745574635261,-514.02752963,0.00016438,2]
[358942279,1745574635270,-500.0,0.00016438,2]
[358942280,1745574635279,-500.0,0.00016438,2]
[358942281,1745574635288,-500.0,0.00016438,2]
[358942282,1745574635299,-500.0,0.00016438,2]
[358942283,1745574635308,-554.73,0.00016438,2]
[358942284,1745574635318,-501.74584649,0.00016438,2]
[358942285,1745574635328,-500.0,0.00016438,2]
[358942286,1745574635338,-500.0,0.00016438,2]
[358942287,1745574635349,-518.88,0.00016438,2]
[358942288,1745574635359,-500.0,0.00016438,2]
[358942289,1745574635369,-500.0,0.00016438,2]
[358942290,1745574635379,-500.0,0.00016438,2]
[358942291,1745574635388,-500.0,0.00016438,2]
[358942292,1745574635398,-500.0,0.00016438,2]